bitfinex-derivatives/quotes_BTCF0:USTF0_20250718
["timestamp","ask_amount","ask_price","bid_price","bid_amount"]
[1752859421850,1.80511216,117890.0,117880.0,0.3347338]
[1752859422748,1.36906132,117890.0,117880.0,0.3347338]
[1752859422948,1.80511216,117890.0,117880.0,0.3347338]
[1752859424049,1.36906132,117890.0,117880.0,0.3347338]
[1752859424249,1.80511216,117890.0,117880.0,0.3347338]
[1752859425351,1.80411216,117890.0,117880.0,0.3347338]
[1752859425547,1.80411216,117890.0,117880.0,0.3377338]
[1752859425749,1.80411216,117890.0,117880.0,0.39842818]
[1752859426149,1.80411216,117890.0,117880.0,0.3377338]
[1752859426550,1.44331216,117890.0,117880.0,0.3377338]
[1752859426750,1.80411216,117890.0,117880.0,0.3397338]
[1752859428249,1.50875132,117890.0,117880.0,0.17016]
[1752859428451,1.94480216,117890.0,117880.0,0.3397337]
[1752859429252,1.50875132,117890.0,117880.0,0.3397337]
[1752859429551,1.94480216,117890.0,117880.0,0.3397337]
[1752859430152,1.58400216,117890.0,117880.0,0.3397337]
[1752859430352,1.94480216,117890.0,117880.0,0.3397337]
[1752859430652,1.81480216,117890.0,117880.0,0.3397337]
[1752859431643,1.45400216,117890.0,117880.0,0.3397337]
[1752859431845,1.83343346,117890.0,117880.0,0.17016]
[1752859432046,1.94015346,117890.0,117880.0,0.005]
[1752859432747,0.2344238,117880.0,117870.0,0.06069438]
[1752859432951,1.57732548,117880.0,117870.0,0.06069438]
[1752859433545,1.57732548,117880.0,117870.0,0.03150438]
[1752859433745,0.1696025,117860.0,117850.0,0.17674798]
[1752859433943,1.58001334,117860.0,117850.0,0.34636488]
[1752859434156,1.58001334,117860.0,117850.0,0.17674798]
[1752859434456,1.7081723,117860.0,117850.0,0.17674798]
[1752859434645,1.7081723,117860.0,117850.0,0.08505]
[1752859435047,1.7081723,117860.0,117850.0,0.16091798]
[1752859435445,1.27212146,117860.0,117850.0,0.16091798]
[1752859435658,1.7081723,117860.0,117850.0,0.16091798]
[1752859435850,1.7081723,117860.0,117850.0,0.17674798]
[1752859436655,1.27180146,117860.0,117850.0,0.34636718]
[1752859436857,1.7078523,117860.0,117850.0,0.34636718]
[1752859437255,1.7078523,117860.0,117850.0,0.17674798]
[1752859437857,1.7078523,117860.0,117850.0,0.17774798]
[1752859438050,1.27180146,117860.0,117850.0,0.08605]
[1752859438250,1.7078523,117860.0,117850.0,0.08605]
[1752859439255,1.7078523,117860.0,117850.0,0.08805]
[1752859439758,1.27180146,117860.0,117850.0,0.2735]
[1752859440054,1.7078523,117860.0,117850.0,0.2735]
[1752859441354,0.96645334,117860.0,117850.0,0.2735]
[1752859441552,0.5304056,117860.0,117850.0,0.77383084]
[1752859441751,0.1696056,117860.0,117850.0,0.77383084]
[1752859441958,0.59169799,117870.0,117860.0,0.3330656]
[1752859442153,0.01889689,117870.0,117860.0,0.76911644]
[1752859442352,0.01889689,117870.0,117860.0,1.12991644]
[1752859442559,0.01889689,117870.0,117860.0,1.74451644]
[1752859442854,0.01889689,117870.0,117860.0,1.82038442]
[1752859443258,0.01889689,117870.0,117860.0,1.82138442]
[1752859443459,0.01989689,117870.0,117860.0,1.99107242]
[1752859444160,0.28046232,117890.0,117880.0,0.3330368]
[1752859445454,0.28747232,117890.0,117880.0,0.3330368]
[1752859446060,0.28147232,117890.0,117880.0,0.3350368]
[1752859446261,0.28147232,117890.0,117880.0,0.3380368]
[1752859447157,0.28046232,117890.0,117880.0,0.3380368]
[1752859447358,0.23807122,117890.0,117880.0,0.3380368]
[1752859448557,0.23807122,117890.0,117880.0,0.39891546]
[1752859448758,0.23807122,117890.0,117880.0,1.01247546]
[1752859448953,0.23908122,117890.0,117880.0,1.01247546]
[1752859450861,0.23908122,117890.0,117880.0,1.01227546]
[1752859451062,0.23908122,117890.0,117880.0,0.9513968]
[1752859451262,0.23908122,117890.0,117880.0,0.9512768]
[1752859451664,0.67513206,117890.0,117880.0,0.9512768]
[1752859452165,0.23908122,117890.0,117880.0,0.9512768]
[1752859452365,0.23908122,117890.0,117880.0,1.38732764]
[1752859452862,0.23908122,117890.0,117880.0,0.9512768]
[1752859453163,0.23807122,117890.0,117880.0,0.9512768]
[1752859453362,0.06850532,117890.0,117880.0,1.74812764]
[1752859453565,1.34725934,117900.0,117890.0,0.2042229]
[1752859453864,1.34725934,117900.0,117890.0,0.3330229]
[1752859454064,0.5737382,117910.0,117900.0,0.3330085]
[1752859454256,1.25018342,117910.0,117900.0,0.3330085]
[1752859454659,1.64384836,117910.0,117900.0,0.3330085]
[1752859454859,0.55073272,117910.0,117900.0,0.3330085]
[1752859455461,1.14561,117920.0,117910.0,0.2317441]
[1752859455762,1.6505303,117920.0,117910.0,0.3329941]
[1752859456165,1.4810103,117920.0,117910.0,0.3329941]
[1752859456565,1.65053,117920.0,117910.0,0.3329941]
[1752859456767,1.28973,117920.0,117910.0,0.3329941]
[1752859457167,1.29073,117920.0,117910.0,0.3329941]
[1752859457964,0.85667916,117920.0,117910.0,0.3329941]
[1752859458267,1.29273,117920.0,117910.0,0.3329941]
[1752859458867,0.85667916,117920.0,117910.0,0.3329941]
[1752859459071,1.29273,117920.0,117910.0,0.3329941]
[1752859460367,0.85667916,117920.0,117910.0,0.3329941]
[1752859460572,1.1232103,117920.0,117910.0,0.3329941]
[1752859461673,0.68715946,117920.0,117910.0,0.3329941]
[1752859462270,0.85667936,117920.0,117910.0,0.3329941]
[1752859463172,0.85667936,117920.0,117910.0,0.6937941]
[1752859463670,0.24239936,117920.0,117910.0,0.3329941]
[1752859463872,0.003,117920.0,117910.0,0.3329941]
[1752859464072,0.003,117920.0,117910.0,0.76904494]
[1752859464268,0.1735301,117920.0,117910.0,0.6937941]
[1752859464973,0.60958094,117920.0,117910.0,0.6937941]
[1752859465768,0.1735301,117920.0,117910.0,0.6937941]
[1752859466668,0.003,117920.0,117910.0,1.3075941]
[1752859466869,0.00101,117940.0,117930.0,0.332966]
[1752859467072,0.6160174,117960.0,117950.0,0.2316873]
[1752859467272,0.1704729,117960.0,117950.0,0.3329373]
[1752859467472,0.1704729,117960.0,117950.0,0.76898814]
[1752859467674,0.5312729,117960.0,117950.0,0.76898814]
[1752859467972,0.1704729,117960.0,117950.0,0.3329373]
[1752859468173,0.5312729,117960.0,117950.0,0.3329373]
[1752859468367,0.59964357,117960.0,117950.0,0.3329373]
[1752859468576,0.60264357,117960.0,117950.0,0.3329373]
[1752859468979,1.05810735,117960.0,117950.0,0.3329373]
[1752859469172,1.06664859,117960.0,117950.0,0.3329373]
[1752859469573,1.06764859,117960.0,117950.0,0.3329373]
[1752859470177,0.63159775,117960.0,117950.0,0.3329373]
[1752859470378,1.06764043,117960.0,117950.0,0.3329373]
[1752859470578,1.04823565,117960.0,117950.0,0.3329373]
[1752859471280,1.03969441,117960.0,117950.0,0.3329373]
[1752859473574,0.67889441,117960.0,117950.0,0.3329373]
[1752859473781,1.03975441,117960.0,117950.0,0.16346]
[1752859473976,1.16975441,117960.0,117950.0,0.10125]
[1752859474183,1.16975441,117960.0,117950.0,0.2707273]
[1752859474577,1.16975441,117960.0,117950.0,0.2787573]
[1752859474880,1.16975441,117960.0,117950.0,0.3333273]
[1752859475281,1.03969441,117960.0,117950.0,0.3333273]
[1752859476187,1.03975441,117960.0,117950.0,0.3333272]
[1752859477285,0.67895441,117960.0,117950.0,0.3333272]
[1752859477883,1.03975441,117960.0,117950.0,0.3333272]
[1752859478280,1.05914853,117960.0,117950.0,0.3333272]
[1752859479783,0.4771549,117950.0,117910.0,0.0423832]
[1752859479986,1.12415564,117920.0,117910.0,0.2745099]
[1752859480186,1.74423564,117920.0,117910.0,0.2745099]
[1752859480673,1.74423564,117920.0,117910.0,0.2321267]
[1752859480879,1.3081848,117920.0,117910.0,0.2321267]
[1752859481177,1.38343564,117920.0,117910.0,0.2341267]
[1752859481382,0.66691564,117920.0,117910.0,0.2381267]
[1752859481582,0.1774048,117920.0,117910.0,0.2381267]
[1752859481891,0.2118824,117940.0,117920.0,0.2858203]
[1752859482178,0.67639,117940.0,117930.0,0.3281969]
[1752859482380,0.31559,117940.0,117930.0,0.3281969]
[1752859482585,0.75164084,117940.0,117930.0,0.3281969]
[1752859482775,1.11244084,117940.0,117930.0,0.3281969]
[1752859482982,1.19251084,117940.0,117930.0,0.3281969]
[1752859483179,1.20888084,117940.0,117930.0,0.3281969]
[1752859483386,1.19251084,117940.0,117930.0,0.3281969]
[1752859483582,0.67639,117940.0,117930.0,0.3281969]
[1752859483781,0.35340579,117950.0,117940.0,0.3281836]
[1752859484284,0.80887369,117950.0,117940.0,0.3281836]
[1752859484688,1.18604369,117950.0,117940.0,0.3281836]
[1752859484886,1.30604369,117950.0,117940.0,0.15868]
[1752859485086,0.51019285,117950.0,117940.0,0.2492736]
[1752859485285,1.18704369,117950.0,117940.0,0.2492736]
[1752859485487,0.75099285,117950.0,117940.0,0.2655836]
[1752859485689,0.75099285,117950.0,117940.0,0.2736136]
[1752859485989,1.18704369,117950.0,117940.0,0.2998536]
[1752859486184,0.34781725,117950.0,117940.0,0.3281836]
[1752859486378,0.34781725,117950.0,117940.0,0.76423444]
[1752859486379,0.06247099,117950.0,117940.0,0.76423444]
[1752859486578,0.06247099,117950.0,117940.0,0.3281836]
[1752859486888,0.00114099,117950.0,117940.0,0.69733818]
[1752859487089,0.00114099,117950.0,117940.0,1.13338902]
[1752859487788,0.00114099,117950.0,117940.0,1.76778902]
[1752859487986,0.00114099,117950.0,117940.0,1.33173818]
[1752859488389,0.00114099,117950.0,117940.0,1.76778902]
[1752859488590,0.00114099,117950.0,117940.0,1.33173818]
[1752859488780,0.00114099,117950.0,117940.0,1.76778902]
[1752859489088,0.00114099,117950.0,117940.0,0.69733818]
[1752859489287,0.17850019,117950.0,117940.0,0.69733818]
[1752859489494,0.74808103,117950.0,117940.0,0.33653818]
[1752859489684,1.77890169,117950.0,117940.0,0.3281836]
[1752859489884,0.2596736,117940.0,117930.0,0.2655947]
[1752859490190,0.6880736,117940.0,117930.0,0.249288]
[1752859490592,1.24412444,117940.0,117930.0,0.07977]
[1752859490792,0.327288,117930.0,117920.0,0.400775]
[1752859490991,1.75933884,117930.0,117920.0,0.427015]
[1752859491185,1.323288,117930.0,117920.0,0.455345]
[1752859491384,1.75933884,117930.0,117920.0,0.4638052]
[1752859491584,1.75933884,117930.0,117920.0,0.455345]
[1752859491792,1.75933884,117930.0,117920.0,0.458345]
[1752859492483,1.323288,117930.0,117920.0,0.458345]
[1752859492791,0.866048,117930.0,117920.0,0.460345]
[1752859494195,0.69653,117930.0,117920.0,0.460345]
[1752859495193,0.8660476,117930.0,117920.0,0.460345]
[1752859495995,0.9624876,117930.0,117920.0,0.460345]
[1752859497289,0.15777,117930.0,117920.0,0.460345]
[1752859497487,0.1414,117930.0,117920.0,0.460345]
[1752859497691,0.06133,117930.0,117920.0,0.460345]
[1752859498191,0.06133,117930.0,117920.0,0.52122366]
[1752859498498,0.03529,117930.0,117920.0,0.52122366]
[1752859499191,0.03529,117930.0,117920.0,1.03092217]
[1752859499495,1.1640639,117940.0,117930.0,0.3281977]
[1752859499795,1.77020241,117940.0,117930.0,0.3281977]
[1752859499995,1.78897369,117940.0,117930.0,0.3281977]
[1752859500187,1.78897369,117940.0,117920.0,0.19302266]
[1752859500188,0.3109177,117930.0,117920.0,0.14564866]
[1752859500392,1.31778621,117930.0,117920.0,0.14564866]
[1752859500593,1.31778621,117930.0,117920.0,0.06587866]
[1752859500893,1.31778621,117930.0,117920.0,0.06087866]
[1752859501894,1.31778621,117930.0,117920.0,0.06287866]
[1752859502095,1.31778621,117930.0,117920.0,0.06587866]
[1752859502296,1.31778621,117930.0,117920.0,0.005]
[1752859503605,0.230692,117920.0,117910.0,0.39495646]
[1752859503903,1.95091051,117920.0,117910.0,0.41161646]
[1752859504504,1.95091051,117920.0,117910.0,0.41977646]
[1752859504698,1.95091051,117920.0,117910.0,0.37739006]
[1752859505004,1.95091051,117920.0,117910.0,0.38239006]
[1752859505199,1.95091051,117920.0,117910.0,0.06587866]
[1752859505200,1.45974244,117920.0,117910.0,0.06587866]
[1752859505399,1.96944095,117920.0,117910.0,0.06587866]
[1752859505594,1.96944095,117920.0,117910.0,0.005]
[1752859506207,1.96944095,117920.0,117910.0,0.06587866]
[1752859506405,1.45974244,117920.0,117910.0,0.005]
[1752859506705,1.96944095,117920.0,117910.0,0.002]
[1752859506897,0.2307064,117910.0,117900.0,0.06087866]
[1752859507101,0.2307064,117910.0,117890.0,0.39529418]
[1752859507102,0.2307208,117900.0,117890.0,0.39529418]
[1752859507301,1.82981931,117900.0,117890.0,0.35291318]
[1752859507696,1.82981931,117900.0,117890.0,0.18333798]
[1752859507896,1.94981931,117900.0,117890.0,0.15851798]
[1752859508098,1.94981931,117900.0,117890.0,0.32809318]
[1752859508497,1.94981931,117900.0,117890.0,0.33109318]
[1752859509004,1.3201208,117900.0,117890.0,0.40990318]
[1752859509802,0.42196,117900.0,117890.0,0.40990318]
[1752859510003,0.06116,117910.0,117900.0,0.1695608]
[1752859510303,1.23199054,117920.0,117910.0,0.3310064]
[1752859510504,1.23199054,117920.0,117910.0,0.39187961]
[1752859511413,1.28521054,117920.0,117910.0,0.39187961]
[1752859511710,0.01953044,117920.0,117910.0,0.75267961]
[1752859511905,0.01953044,117920.0,117910.0,1.20150491]
[1752859512106,0.01953044,117920.0,117910.0,0.3310064]
[1752859512305,0.01953044,117920.0,117910.0,1.20150491]
[1752859512506,0.01953044,117920.0,117910.0,1.27737289]
[1752859513110,0.01953044,117920.0,117910.0,1.28037289]
[1752859513712,0.01853044,117920.0,117910.0,1.28237289]
[1752859514104,0.01853044,117920.0,117910.0,1.28337289]
[1752859514409,0.44073128,117940.0,117930.0,0.2316677]
[1752859514613,0.44073128,117940.0,117930.0,0.39185005]
[1752859514808,0.37957128,117940.0,117930.0,0.39185005]
[1752859515015,0.00014099,117950.0,117940.0,0.3061434]
[1752859515324,0.00014099,117950.0,117940.0,0.39183575]
[1752859515815,0.00014099,117950.0,117940.0,1.53489426]
[1752859516108,0.00014099,117950.0,117940.0,1.89569426]
[1752859516314,0.00014099,117950.0,117940.0,1.53489426]
[1752859516811,0.00114099,117950.0,117940.0,1.53489426]
[1752859517016,0.00114099,117950.0,117940.0,1.96340752]
[1752859517316,0.00214099,117950.0,117940.0,1.96340752]
[1752859518011,0.00214099,117950.0,117940.0,1.09290901]
[1752859518217,0.00214099,117950.0,117940.0,1.60260752]
[1752859519317,0.00014099,117950.0,117940.0,1.60760752]
[1752859519516,0.00014099,117950.0,117940.0,1.61060752]
[1752859520315,0.00014099,117950.0,117940.0,1.97140752]
[1752859522111,0.00014099,117950.0,117940.0,1.61060752]
[1752859522313,0.00014099,117950.0,117940.0,1.10090901]
[1752859522515,0.00014099,117950.0,117940.0,1.61060752]
[1752859522906,0.16962989,117950.0,117940.0,1.10090901]
[1752859523617,0.00014099,117950.0,117940.0,1.10090901]
[1752859523917,0.00014099,117950.0,117940.0,1.46170901]
[1752859524117,0.17756989,117950.0,117940.0,1.10090901]
[1752859524319,0.17756989,117950.0,117940.0,1.46170901]
[1752859524813,0.00014099,117950.0,117940.0,1.10090901]
[1752859525018,0.00014099,117950.0,117940.0,1.46170901]
[1752859525319,0.16962999,117950.0,117940.0,1.46170901]
[1752859525619,0.00014099,117950.0,117940.0,1.10090901]
[1752859525817,0.59158999,117950.0,117940.0,0.9721634]
[1752859526014,1.1967285,117950.0,117940.0,0.3389634]
[1752859526218,1.1967285,117950.0,117940.0,0.9719234]
[1752859527416,0.50306099,117950.0,117940.0,0.3369634]
[1752859527620,0.06130099,117950.0,117940.0,0.3369634]
[1752859528818,0.59158999,117950.0,117940.0,0.3369634]
[1752859529221,0.06130099,117950.0,117940.0,0.3369634]
[1752859529612,0.23078999,117950.0,117940.0,0.3369634]
[1752859530120,0.68702999,117950.0,117940.0,0.3369634]
[1752859530320,1.1967285,117950.0,117940.0,0.3369634]
[1752859530820,1.1967285,117950.0,117940.0,0.39783575]
[1752859531022,0.68702999,117950.0,117940.0,0.39783575]
[1752859531523,0.31174999,117950.0,117940.0,0.39783575]
[1752859531821,0.67254999,117950.0,117940.0,0.39783575]
[1752859532123,0.60518999,117950.0,117940.0,0.33070575]
[1752859532318,0.66865999,117950.0,117940.0,0.39744575]
[1752859533421,0.68255999,117950.0,117940.0,0.39744575]
[1752859533822,1.2422585,117950.0,117940.0,0.39744555]
[1752859534018,1.2422585,117950.0,117940.0,0.3365732]
[1752859534322,0.73255999,117950.0,117940.0,0.39744555]
[1752859534524,0.73255999,117950.0,117940.0,0.3365732]
[1752859534920,1.16744544,117950.0,117940.0,0.3365732]
[1752859535723,1.10397544,117950.0,117940.0,0.2698332]
[1752859535924,1.14202544,117950.0,117940.0,0.3365732]
[1752859536422,1.14202544,117950.0,117940.0,0.39744555]
[1752859538018,1.14202544,117950.0,117940.0,0.14833235]
[1752859538224,1.14202544,117950.0,117940.0,0.08746]
[1752859538617,1.15034364,117950.0,117940.0,0.08746]
[1752859538820,1.15034364,117950.0,117940.0,0.006]
[1752859539627,1.15034364,117950.0,117940.0,0.005]
[1752859540426,1.15034364,117950.0,117940.0,0.004]
[1752859540725,1.14202544,117950.0,117940.0,0.2537532]
[1752859540928,1.14202544,117950.0,117940.0,0.08425]
[1752859541829,1.15054577,117950.0,117940.0,0.2537532]
[1752859542629,1.15054577,117950.0,117940.0,0.08425]
[1752859543130,1.15054577,117950.0,117940.0,0.004]
[1752859543718,1.15054577,117950.0,117930.0,0.06087235]
[1752859543719,0.3074632,117940.0,117930.0,0.06087235]
[1752859543919,0.2694276,117930.0,117920.0,0.3080511]
[1752859544125,1.85278305,117930.0,117920.0,0.3080511]
[1752859544326,1.4178976,117930.0,117920.0,0.3430711]
[1752859544526,1.85278305,117930.0,117920.0,0.3699511]
[1752859544734,1.85278305,117930.0,117920.0,0.1695292]
[1752859544928,1.85278305,117930.0,117920.0,0.2656692]
[1752859545127,1.85278305,117930.0,117920.0,0.3006892]
[1752859545327,1.85278305,117930.0,117920.0,0.3275692]
[1752859546028,1.3078976,117930.0,117920.0,0.3275692]
[1752859546332,1.73288305,117930.0,117920.0,0.3285692]
[1752859546733,1.3078976,117930.0,117920.0,0.3285692]
[1752859546935,1.3077376,117930.0,117920.0,0.3295692]
[1752859547232,1.74262305,117930.0,117920.0,0.3295692]
[1752859547534,1.85262305,117930.0,117920.0,0.3295692]
[1752859548227,1.85262305,117930.0,117920.0,0.40543718]
[1752859549233,1.85262305,117930.0,117920.0,0.3295692]
[1752859549632,1.85262305,117930.0,117920.0,0.40543718]
[1752859549933,1.85262305,117930.0,117920.0,0.3295692]
[1752859550239,1.85262305,117930.0,117920.0,0.40543718]
[1752859552740,1.22306305,117930.0,117920.0,0.40543988]
[1752859553036,1.85150305,117930.0,117920.0,0.40543988]
[1752859555538,0.8585876,117930.0,117920.0,0.40543988]
[1752859556137,1.2193876,117930.0,117920.0,0.40543988]
[1752859556334,0.9353576,117930.0,117920.0,0.40543988]
[1752859556838,1.2961576,117930.0,117920.0,0.40543988]
[1752859557035,1.4161576,117930.0,117920.0,0.40543988]
[1752859557239,1.86094305,117930.0,117920.0,0.40543988]
[1752859557440,1.86094305,117930.0,117920.0,0.3295719]
[1752859557940,1.86094305,117930.0,117920.0,0.09814]
[1752859558143,1.86094305,117930.0,117920.0,0.32764988]
[1752859558438,1.86094305,117930.0,117920.0,0.34353988]
[1752859558640,1.86094305,117930.0,117920.0,0.40543988]
[1752859560346,1.4260576,117930.0,117920.0,0.40543988]
[1752859560537,1.86094305,117930.0,117920.0,0.40543988]
[1752859561240,1.86094305,117930.0,117920.0,0.40532236]
[1752859561541,1.4260576,117930.0,117920.0,0.40532236]
[1752859561742,1.86094305,117930.0,117920.0,0.40532236]
[1752859562137,1.4260576,117930.0,117920.0,0.40532236]
[1752859562437,0.06119,117930.0,117920.0,0.76433983]
[1752859562642,1.2434287,117940.0,117930.0,0.2307876]
[1752859562835,1.84823415,117940.0,117930.0,0.2882876]
[1752859563038,1.84823415,117940.0,117930.0,0.3278576]
[1752859563241,1.88621415,117940.0,117930.0,0.3278576]
[1752859563440,1.92366415,117940.0,117930.0,0.3278576]
[1752859564143,1.92466415,117940.0,117930.0,0.3278576]
[1752859564645,1.93401415,117940.0,117930.0,0.3278576]
[1752859564836,1.93401415,117940.0,117930.0,0.15641798]
[1752859565145,0.2294376,117930.0,117920.0,0.48848868]
[1752859565341,1.21990305,117930.0,117920.0,0.48848868]
[1752859565841,1.21990305,117930.0,117920.0,0.44610808]
[1752859566439,1.21990305,117930.0,117920.0,0.44710808]
[1752859567235,1.21990305,117930.0,117920.0,0.44810808]
[1752859571834,1.21990305,117930.0,117920.0,0.3722401]
[1752859572340,1.21990305,117930.0,117920.0,0.3463701]
[1752859574143,1.21990305,117930.0,117920.0,0.3039902]
[1752859574343,0.7850176,117930.0,117920.0,0.3039902]
[1752859574546,1.21990305,117930.0,117920.0,0.3039902]
[1752859574737,1.21990305,117930.0,117920.0,0.3298602]
[1752859582056,1.21990305,117930.0,117920.0,0.16034]
[1752859582251,0.3083763,117910.0,117900.0,0.07586798]
[1752859582456,2.22681175,117910.0,117900.0,0.30669868]
[1752859582651,2.22681175,117910.0,117900.0,0.2308307]
[1752859582857,2.22741175,117910.0,117900.0,0.2308307]
[1752859583160,2.22745175,117910.0,117900.0,0.06127]
[1752859583357,1.7925663,117910.0,117900.0,0.06127]
[1752859583660,2.29395955,117910.0,117900.0,0.06127]
[1752859583860,2.29399955,117910.0,117900.0,0.2308307]
[1752859584155,1.8591141,117910.0,117900.0,0.3299007]
[1752859584362,2.29399955,117910.0,117900.0,0.3299007]
[1752859585461,2.29399955,117910.0,117900.0,0.16034]
[1752859585662,2.29399955,117910.0,117900.0,0.3299007]
[1752859585962,2.29399955,117910.0,117900.0,0.16034]
[1752859586159,2.29399955,117910.0,117900.0,0.04157]
[1752859586463,2.29399955,117910.0,117900.0,0.002]
[1752859587163,2.30225248,117910.0,117900.0,0.002]
[1752859587355,2.29399955,117910.0,117900.0,0.2111307]
[1752859587555,2.29399955,117910.0,117900.0,0.2535207]
[1752859587761,2.29399955,117910.0,117900.0,0.2945007]
[1752859588061,2.29399955,117910.0,117900.0,0.12494]
[1752859588265,2.29399955,117910.0,117900.0,0.08396]
[1752859588466,2.29399955,117910.0,117900.0,0.06744]
[1752859588666,2.29399955,117910.0,117900.0,0.04157]
[1752859589666,2.29399955,117910.0,117900.0,0.002]
[1752859592164,2.30231612,117910.0,117900.0,0.002]
[1752859593871,2.30231612,117910.0,117900.0,0.04183]
[1752859594266,2.30231612,117910.0,117900.0,0.002]
[1752859594869,2.30231612,117910.0,117880.0,0.3214962]
[1752859594870,0.2228251,117890.0,117880.0,0.3214962]
[1752859595069,1.86709055,117890.0,117880.0,0.15191]
[1752859595269,1.86709055,117890.0,117880.0,0.3214995]
[1752859595462,1.86709055,117890.0,117880.0,0.03983]
[1752859596074,0.2847596,117880.0,117870.0,0.17009798]
[1752859596269,1.23086505,117880.0,117870.0,0.03983]
[1752859596875,1.23086505,117880.0,117870.0,0.2094339]
[1752859597073,0.7959796,117880.0,117870.0,0.3215139]
[1752859597372,0.7959796,117880.0,117870.0,0.3225139]
[1752859597373,1.23086505,117880.0,117870.0,0.3225139]
[1752859597676,1.85742505,117880.0,117870.0,0.3245139]
[1752859598170,2.2923105,117880.0,117870.0,0.003]
[1752859598674,1.4225396,117880.0,117870.0,0.1726039]
[1752859598870,1.4225396,117880.0,117870.0,0.2124339]
[1752859599064,1.85742505,117880.0,117870.0,0.2124339]
[1752859599264,1.85742505,117880.0,117870.0,0.04283]
[1752859600273,1.85742505,117880.0,117870.0,0.003]
[1752859600573,1.85762505,117880.0,117870.0,0.2124339]
[1752859601174,0.7959796,117880.0,117870.0,0.2124339]
[1752859601376,1.85794505,117880.0,117870.0,0.2124339]
[1752859601572,0.7959796,117880.0,117870.0,0.3245139]
[1752859601772,0.9526195,117880.0,117870.0,0.3245139]
[1752859602068,1.82830495,117880.0,117870.0,0.3245139]
[1752859602275,1.20086495,117880.0,117870.0,0.2124339]
[1752859602576,1.82866495,117880.0,117870.0,0.2124339]
[1752859602870,1.3937795,117880.0,117870.0,0.2124339]
[1752859603077,1.82866495,117880.0,117870.0,0.2124339]
[1752859604172,1.82866495,117880.0,117870.0,0.04283]
[1752859604372,1.82866495,117880.0,117870.0,0.003]
[1752859604572,2.2635504,117880.0,117870.0,0.003]
[1752859605175,0.3091383,117860.0,117850.0,0.03983]
[1752859605378,1.86845375,117860.0,117850.0,0.2094627]
[1752859605574,1.86845375,117860.0,117850.0,0.3215427]
[1752859605778,1.86865375,117860.0,117850.0,0.32974939]
[1752859606079,1.4337683,117860.0,117850.0,0.32974939]
[1752859606382,1.3137683,117860.0,117850.0,0.33274939]
[1752859606580,1.74865375,117860.0,117850.0,0.33274939]
[1752859607080,1.74865375,117860.0,117850.0,0.33574939]
[1752859607276,1.74849375,117860.0,117850.0,0.33574939]
[1752859607776,0.2712083,117860.0,117850.0,0.33574939]
[1752859607980,0.8989283,117860.0,117850.0,0.77063484]
[1752859608278,0.8989283,117860.0,117850.0,0.33574939]
[1752859608778,0.8989283,117860.0,117850.0,0.69654939]
[1752859608976,0.8989283,117860.0,117850.0,0.77063484]
[1752859608977,0.8235683,117860.0,117850.0,0.77063484]
[1752859609182,1.3603972,117870.0,117860.0,0.2272983]
[1752859609377,0.07465,117870.0,117860.0,0.75641375]
[1752859609682,1.3445091,117880.0,117870.0,0.3215139]
[1752859609883,0.9837091,117880.0,117870.0,0.3215139]
[1752859610181,1.3445091,117880.0,117870.0,0.3215139]
[1752859610378,0.72445252,117900.0,117890.0,0.15191]
[1752859610574,0.30518982,117900.0,117890.0,0.75637055]
[1752859610774,0.26279832,117900.0,117890.0,0.3214851]
[1752859610978,0.65053832,117900.0,117890.0,0.3214851]
[1752859611180,1.13942377,117900.0,117890.0,0.3214851]
[1752859611883,1.13942377,117900.0,117890.0,0.3224851]
[1752859612386,1.13942377,117900.0,117890.0,0.3234851]
[1752859613485,0.34373832,117900.0,117890.0,0.3234851]
[1752859613784,0.26279832,117900.0,117890.0,0.75837055]
[1752859613986,0.03423,117900.0,117890.0,0.75837055]
[1752859614283,1.4088806,117910.0,117900.0,0.2023407]
[1752859614484,1.42957379,117910.0,117900.0,0.3214707]
[1752859614875,1.46750379,117910.0,117900.0,0.3214707]
[1752859615084,1.90238924,117910.0,117900.0,0.3214707]
[1752859616285,2.02238924,117910.0,117900.0,0.2093907]
[1752859616883,2.02338924,117910.0,117900.0,0.2712707]
[1752859617082,2.02338924,117910.0,117900.0,0.2320507]
[1752859617384,2.02338924,117910.0,117900.0,0.3214707]
[1752859618084,1.98099964,117910.0,117900.0,0.3214707]
[1752859618285,1.62019964,117910.0,117900.0,0.3214707]
[1752859618684,1.98099964,117910.0,117900.0,0.3214707]
[1752859619180,0.47321319,117910.0,117900.0,0.3214707]
[1752859619381,0.75036319,117910.0,117900.0,0.75635615]
[1752859619685,0.03523,117910.0,117900.0,0.75635615]
[1752859620279,0.001,117910.0,117900.0,1.74499615]
[1752859620677,0.001,117910.0,117900.0,1.3101107]
[1752859620990,0.001,117910.0,117900.0,1.74499615]
[1752859621289,0.04042,117920.0,117910.0,0.2310064]
[1752859621582,0.06114168,117920.0,117910.0,0.76014185]
[1752859622177,0.23067368,117920.0,117910.0,0.3252564]
[1752859622385,0.26476368,117920.0,117910.0,0.3252564]
[1752859622688,0.11983168,117920.0,117910.0,0.3252564]
[1752859622884,0.11983168,117920.0,117910.0,0.3262564]
[1752859623084,0.09523168,117920.0,117910.0,0.76114185]
[1752859623288,0.05481168,117920.0,117910.0,1.12194185]
[1752859623787,0.02072168,117920.0,117910.0,1.12194185]
[1752859623986,1.25971702,117940.0,117930.0,0.2309776]
[1752859624180,1.29607798,117940.0,117930.0,0.3252276]
[1752859624893,1.08419328,117940.0,117930.0,0.3252276]
[1752859625087,1.25669648,117940.0,117930.0,0.3252276]
[1752859625386,1.25769648,117940.0,117930.0,0.3252276]
[1752859625587,1.72918193,117940.0,117930.0,0.3252276]
[1752859626690,1.10190193,117940.0,117930.0,0.3252276]
[1752859626991,0.72570648,117940.0,117930.0,0.3252276]
[1752859627486,0.31266648,117940.0,117930.0,0.3252276]
[1752859627784,0.67346648,117940.0,117930.0,0.3252276]
[1752859627988,0.31266648,117940.0,117930.0,0.3252276]
[1752859629395,0.12406096,117940.0,117930.0,0.33361693]
[1752859629592,0.09946096,117940.0,117930.0,0.84326804]
[1752859630084,0.26896416,117940.0,117930.0,0.33361693]
[1752859630392,0.34580416,117940.0,117930.0,0.96041693]
[1752859631584,0.70660416,117940.0,117930.0,0.33361693]
[1752859632693,1.84273527,117940.0,117930.0,0.2091476]
[1752859633595,1.84273527,117940.0,117930.0,0.2319576]
[1752859633888,1.33224416,117940.0,117930.0,0.3252276]
[1752859634094,1.84189527,117940.0,117930.0,0.3252276]
[1752859634995,1.21625527,117940.0,117930.0,0.3252276]
[1752859635294,1.84189527,117940.0,117930.0,0.3252276]
[1752859637091,1.21625527,117940.0,117930.0,0.3252276]
[1752859637286,0.70660416,117940.0,117930.0,0.3252276]
[1752859637496,0.09946096,117940.0,117930.0,0.3252276]
[1752859637702,0.26896416,117940.0,117930.0,0.3252276]
[1752859637997,0.02472096,117940.0,117930.0,0.83487871]
[1752859638194,0.02472096,117940.0,117930.0,1.45927871]
[1752859638393,0.02472096,117940.0,117930.0,1.82007871]
[1752859639086,0.02472096,117940.0,117930.0,1.98966271]